bitfinex/quotes_ETHUSD_20250107
["timestamp","ask_amount","ask_price","bid_price","bid_amount"]
[1736276561309,2.92159,3431.7,3430.7,0.0075]
[1736276561511,2.94544299,3431.6,3430.7,0.0075]
[1736276562228,3.5575,3431.5,3430.7,0.0075]
[1736276562449,6.47168,3431.5,3430.7,0.0075]
[1736276562612,2.94595194,3431.4,3430.7,0.0075]
[1736276563313,2.91443,3431.2,3430.5,0.397275]
[1736276563528,0.0075,3431.1,3430.5,0.0075]
[1736276563713,0.0075,3430.9,3430.5,0.0075]
[1736276563940,6.49455536,3431.6,3430.7,0.0075]
[1736276564136,0.03167872,3431.5,3430.9,0.0075]
[1736276564336,0.03167872,3431.5,3431.4,2.92176]
[1736276564534,0.1689028,3431.8,3431.6,2.92155]
[1736276564712,0.1689028,3431.8,3431.7,2.9215]
[1736276565135,0.1689028,3431.8,3431.7,4.0025]
[1736276565534,0.1614028,3431.8,3431.7,4.0025]
[1736276566250,0.1614028,3431.8,3431.7,10.3513784]
[1736276566555,0.1614028,3431.8,3431.7,11.83636801]
[1736276566857,0.1689028,3431.8,3431.7,11.83636801]
[1736276567214,1.165918,3434.1,3432.7,0.0075]
[1736276567414,4.077888,3434.1,3433.0,1.0924]
[1736276567620,0.0306928,3434.0,3433.1,0.0075]
[1736276567854,0.0075,3433.9,3433.1,0.0075]
[1736276568228,0.0075,3433.7,3433.1,0.0075]
[1736276568714,2.91945,3434.2,3433.1,0.0075]
[1736276568916,0.5575,3434.2,3433.1,0.41169074]
[1736276569122,3.58128857,3434.1,3433.2,1.0719]
[1736276569322,3.03128857,3434.1,3433.3,0.0075]
[1736276569519,0.03128857,3434.1,3433.3,0.0075]
[1736276569723,0.3,3434.3,3433.3,2.9201]
[1736276569948,0.03128857,3434.2,3433.3,0.0075]
[1736276570169,2.94320857,3434.2,3433.3,0.0075]
[1736276570725,2.91233,3433.7,3433.3,0.0075]
[1736276570961,0.033529,3433.6,3432.5,1.0932]
[1736276571133,2.91261,3433.4,3432.5,1.0932]
[1736276571337,0.0075,3433.2,3432.5,1.0932]
[1736276571561,0.0075,3433.0,3432.1,1.0365]
[1736276571761,0.0075,3432.2,3430.9,1.0365]
[1736276571960,0.0075,3431.9,3431.1,1.0365]
[1736276572161,0.0075,3431.7,3431.1,1.0365]
[1736276572366,0.0075,3431.5,3431.1,1.0365]
[1736276572757,0.0075,3431.5,3431.1,1.029]
[1736276573086,0.0075,3431.3,3431.1,1.029]
[1736276573489,0.5575,3432.0,3430.4,3.0]
[1736276573694,0.0075,3431.1,3430.4,3.0]
[1736276573882,0.0075,3431.1,3430.4,0.615012]
[1736276574078,2.91427,3431.4,3430.2,2.91525]
[1736276574079,0.0075,3430.9,3430.2,2.91525]
[1736276574281,0.03070698,3431.0,3430.0,3.3488784]
[1736276574282,0.03070698,3431.0,3430.4,2.91509]
[1736276574481,0.02926639,3430.8,3430.3,3.0]
[1736276574686,0.235,3432.0,3430.0,3.92328682]
[1736276574893,2.91441,3431.3,3430.0,3.92328682]
[1736276575212,3.55,3431.1,3429.2,3.3488784]
[1736276575382,0.02926639,3431.2,3429.3,2.91604]
[1736276575570,0.02902919,3431.0,3429.7,5.9157]
[1736276575775,2.91442,3431.3,3430.0,0.0075]
[1736276575970,0.02902919,3431.2,3430.2,2.92275]
[1736276576303,1.0018,3431.5,3430.4,0.0075]
[1736276576475,0.02902919,3431.1,3430.6,0.0075]
[1736276576672,2.91402,3431.7,3430.6,2.92243]
[1736276576898,0.02902919,3431.0,3430.6,2.92243]
[1736276577200,0.02902919,3430.9,3430.8,0.0075]
[1736276577694,2.81402,3431.7,3430.8,0.0075]
[1736276577892,0.55,3431.9,3430.7,0.0075]
[1736276578086,2.91418,3431.5,3430.7,0.0075]
[1736276578394,0.02902919,3431.4,3430.6,0.0075]
[1736276578571,0.0075,3431.3,3430.8,0.0075]
[1736276579004,0.0075,3431.1,3430.8,0.0075]
[1736276579719,0.0075,3430.9,3430.8,0.0075]
[1736276580093,2.91403,3431.7,3430.8,0.0075]
[1736276580331,2.9141,3431.6,3430.6,0.0075]
[1736276580528,0.02902919,3431.6,3430.5,1.0824]
[1736276580850,0.0075,3431.2,3430.5,1.0824]
[1736276580989,0.02902919,3431.6,3430.6,0.029148]
[1736276581195,2.9139,3431.9,3430.8,2.91475]
[1736276581432,0.0075,3431.4,3430.8,2.91475]
[1736276581710,0.0075,3431.4,3430.5,3.99736]
[1736276581920,0.0075,3431.2,3430.5,3.99736]
[1736276582118,0.0075,3431.2,3430.5,1.0749]
[1736276582439,0.0075,3431.0,3430.5,1.0749]
[1736276582938,0.0075,3431.2,3430.6,0.0075]
[1736276583094,0.0075,3430.8,3430.6,0.0075]
[1736276583497,0.0075,3431.2,3430.6,0.0075]
[1736276583699,2.91415,3431.6,3428.9,2.91638]
[1736276583700,0.0075,3430.6,3428.9,2.91638]
[1736276583900,0.0075,3430.2,3429.0,0.62652584]
[1736276584099,0.0075,3430.2,3428.7,2.91655]
[1736276584294,0.0075,3430.2,3429.2,2.91612]
[1736276584750,0.0075,3430.2,3428.7,2.91655]
[1736276584751,0.0075,3430.0,3428.7,2.91655]
[1736276584949,0.0075,3430.0,3428.4,3.3488784]
[1736276585148,0.02902919,3430.1,3428.5,1.0537]
[1736276585149,0.0075,3429.6,3428.5,1.0537]
[1736276585446,0.0075,3429.4,3428.5,1.0537]
[1736276585816,0.0075,3429.2,3428.5,1.450766]
[1736276586011,0.0075,3429.2,3428.5,1.0537]
[1736276586218,0.0075,3429.2,3428.5,3.9704]
[1736276586418,1.44681051,3432.8,3428.5,3.9704]
[1736276586419,0.02810046,3429.1,3428.9,3.3488784]
[1736276586646,0.02810046,3429.1,3429.0,2.95295961]
[1736276586802,2.91523,3430.3,3429.1,2.9237]
[1736276587002,2.91523,3430.3,3429.3,0.0075]
[1736276587197,2.91538,3430.1,3429.0,1.9459388]
[1736276587443,2.91553,3430.0,3429.0,1.0241]
[1736276587769,2.9153,3430.2,3429.0,3.96953984]
[1736276587916,0.02810046,3429.9,3429.0,1.05325984]
[1736276588242,3.0,3430.3,3429.2,2.9161]
[1736276588451,0.0075,3429.7,3429.2,2.9161]
[1736276588600,0.0075,3429.7,3429.3,0.39402]
[1736276588799,0.0075,3429.5,3429.3,0.39402]
[1736276589451,0.0075,3430.2,3429.4,0.0075]
[1736276589633,2.92279,3430.2,3429.4,0.0075]
[1736276589835,0.0075,3429.8,3429.0,1.0241]
[1736276590149,0.0075,3429.8,3429.0,1.418149]
[1736276590368,0.0075,3429.8,3429.0,4.334439]
[1736276590567,2.92329,3429.6,3428.4,2.91677]
[1736276590851,0.0075,3429.6,3428.6,2.91662]
[1736276591054,0.0075,3429.7,3428.4,0.02916322]
[1736276591360,0.0075,3429.4,3428.5,3.0]
[1736276591659,0.0075,3429.2,3428.7,2.9165]
[1736276592001,0.0075,3429.2,3428.6,0.69820032]
[1736276592363,3.93527,3429.8,3428.5,0.0075]
[1736276592364,0.0075,3429.0,3428.5,0.0075]
[1736276592855,0.0075,3428.8,3428.5,0.0075]
[1736276593155,0.0075,3428.8,3428.4,0.0075]
[1736276593356,0.5575,3429.5,3428.6,0.0075]
[1736276593505,3.0,3429.7,3428.7,2.91654]
[1736276593818,3.0,3429.6,3428.7,2.91654]
[1736276594025,2.94262875,3429.6,3428.6,0.0075]
[1736276594305,2.91596,3429.4,3428.6,0.0075]
[1736276594586,2.9163,3429.1,3428.3,1.0361]
[1736276594886,0.02681875,3429.0,3428.3,1.0361]
[1736276596075,0.02681875,3429.0,3428.4,0.0075]
[1736276596076,0.0075,3428.9,3428.4,0.0075]
[1736276596634,0.0075,3428.7,3428.4,0.0075]
[1736276597032,0.0075,3428.5,3428.4,0.0075]
[1736276597283,0.02586888,3428.6,3428.5,2.92422]
[1736276597463,4.6034784,3429.8,3428.3,1.0361]
[1736276597663,3.55,3429.4,3428.3,1.0361]
[1736276597864,3.55,3429.4,3427.9,0.9614]
[1736276597865,2.91645,3428.9,3427.9,0.9614]
[1736276598051,2.91645,3428.9,3427.9,3.87862]
[1736276598249,0.02550242,3428.8,3427.9,3.87862]
[1736276598579,2.91675,3428.5,3427.6,0.2488]
[1736276598788,2.91699,3428.2,3427.6,0.2488]
[1736276598992,3.3488784,3428.6,3427.6,0.2413]
[1736276598993,0.55,3428.5,3427.6,0.2413]
[1736276599273,1.0296,3428.7,3427.6,0.2413]
[1736276599579,2.91687,3428.4,3427.6,0.2413]
[1736276600471,0.0075,3428.2,3427.7,0.0075]
[1736276601373,1.0296,3428.7,3427.7,0.03667517]
[1736276601544,1.0296,3428.7,3427.9,0.0075]
[1736276601738,1.2491,3429.1,3428.1,0.0075]
[1736276602081,2.9165,3428.8,3428.1,0.0075]
[1736276602381,3.46632,3429.0,3428.3,0.0075]
[1736276602761,2.91639,3428.9,3428.3,0.0075]
[1736276603301,2.91639,3428.9,3428.0,0.0075]
[1736276603585,0.0075,3428.8,3428.1,35.398591]
[1736276604279,1.0141,3429.1,3428.2,0.0075]
[1736276604476,3.93035,3429.1,3428.2,0.0075]
[1736276604878,2.91642,3428.9,3428.2,0.0075]
[1736276605181,2.91642,3428.9,3427.9,2.92473]
[1736276605390,2.91642,3428.9,3427.9,3.631698]
[1736276605572,2.91647,3428.8,3427.9,2.91723]
[1736276605905,2.91647,3428.8,3427.6,0.2413]
[1736276606203,2.91658,3428.7,3427.7,2.91738]
[1736276606496,2.91645,3428.9,3427.8,2.91729]
[1736276607177,0.0075,3428.7,3427.9,2.91722]
[1736276607377,0.0075,3428.7,3428.2,0.0075]
[1736276607578,1.0141,3429.1,3428.3,1.0155]
[1736276608084,0.0075,3428.8,3428.0,1.023]
[1736276609149,0.0075,3429.0,3428.0,1.0155]
[1736276609354,0.0075,3428.5,3427.6,1.2532]
[1736276609577,0.0075,3428.8,3427.6,7.0318094]
[1736276609769,0.0075,3428.8,3427.7,2.91737]
[1736276609770,0.0075,3428.7,3427.7,2.91737]
[1736276610167,0.0075,3428.7,3427.8,0.0075]
[1736276610591,0.0075,3428.2,3427.6,1.2532]
[1736276610887,0.0075,3428.2,3427.6,0.2413]
[1736276611089,2.9245,3428.2,3427.6,0.2413]
[1736276611294,0.0075,3428.3,3427.6,0.2413]
[1736276611587,2.9244,3428.3,3427.6,0.2413]
[1736276613364,1.0357,3428.8,3427.7,0.0075]
[1736276613567,1.0357,3428.8,3428.1,2.91699]
[1736276613801,3.95217,3428.8,3427.9,2.92469]
[1736276614230,3.95217,3428.8,3427.9,2.91719]
[1736276614367,1.0357,3428.8,3427.9,2.91719]
[1736276614568,2.91633,3429.0,3427.9,0.415599]
[1736276614770,2.91633,3429.0,3428.1,2.91704]
[1736276614972,2.91633,3429.0,3428.2,0.0075]
[1736276615171,2.91645,3428.9,3428.0,2.91712]
[1736276615366,0.0075,3428.8,3428.0,0.0075]
[1736276616036,3.96124,3429.1,3428.0,3.3584029]
[1736276616172,2.91608,3429.3,3428.1,0.03666889]
[1736276616371,2.91608,3429.3,3428.6,0.0075]
[1736276616589,0.0075,3429.2,3428.6,0.0075]
[1736276617130,0.0075,3428.9,3428.2,1.0071]
[1736276617634,1.2013,3429.4,3428.4,0.0075]
[1736276617808,1.2013,3429.4,3428.2,4.316474]
[1736276617809,2.91613,3429.2,3428.2,4.316474]
[1736276618014,0.0075,3428.9,3428.2,1.0071]
[1736276618930,0.0075,3428.8,3428.2,1.0071]
[1736276619111,0.0075,3429.1,3427.6,35.2413]
[1736276619309,0.0075,3428.8,3428.0,0.0075]
[1736276620137,0.0075,3428.8,3428.1,0.0075]
[1736276620293,0.0075,3428.7,3428.1,0.0075]
[1736276620493,0.0075,3428.7,3427.6,0.2413]
[1736276620702,0.0075,3428.6,3427.6,0.2413]
[1736276621115,0.0075,3428.6,3427.7,0.0075]
[1736276621631,2.9242,3428.6,3427.7,0.0075]
[1736276622837,1.0185,3429.0,3427.8,0.0075]
[1736276623137,1.0185,3429.3,3428.5,0.0075]
[1736276623323,0.0075,3429.2,3428.7,0.0075]
[1736276623531,2.92363,3429.2,3428.7,0.0075]
[1736276623701,0.0075,3429.0,3428.3,0.9868]
[1736276624072,2.92384,3429.0,3428.3,0.9868]
[1736276624220,2.91649,3428.8,3428.0,0.9793]
[1736276624466,2.92412,3428.7,3428.0,0.9793]
[1736276624683,3.93515,3428.6,3427.8,0.0075]
[1736276624891,0.0075,3428.4,3427.8,0.0075]
[1736276625059,0.0075,3428.3,3427.8,0.0075]
[1736276625564,3.93518,3428.6,3427.8,0.0075]
[1736276626108,1.0185,3428.6,3427.8,2.92476]
[1736276626391,2.91647,3428.8,3427.8,3.3422342]
[1736276626596,0.0075,3428.7,3427.8,3.3422342]
[1736276626892,0.0075,3428.7,3428.0,0.0075]
[1736276627797,0.0075,3428.7,3427.9,0.0075]
[1736276628875,2.91657,3428.7,3427.8,2.91726]
[1736276629038,0.0075,3428.6,3427.8,2.94642853]
[1736276630240,3.0075,3429.0,3427.8,0.02916853]
[1736276630548,0.0075,3428.2,3427.7,0.9793]
[1736276630766,0.0075,3428.2,3427.8,0.0075]
[1736276631171,0.0075,3428.3,3427.8,0.0075]
[1736276631357,2.92441,3428.3,3427.8,0.0075]
[1736276632772,0.0075,3428.3,3427.8,0.0075]
[1736276634326,0.0075,3428.3,3427.6,0.2413]
[1736276634515,2.9249,3427.7,3427.6,0.2413]
[1736276634807,3.9555,3427.7,3427.6,0.2413]
[1736276635147,3.9555,3427.7,3427.6,0.2488]
[1736276635684,1.0381,3427.7,3427.6,0.2488]
[1736276636591,4.11658489,3428.0,3427.7,0.0075]
[1736276636592,1.19940489,3428.0,3427.7,0.0075]
[1736276636753,2.91725,3427.9,3427.7,0.0075]
[1736276637085,0.0075,3427.8,3427.7,0.0075]
[1736276637256,2.92482,3427.8,3427.7,0.0075]
[1736276637687,0.0075,3427.9,3427.7,0.0075]
[1736276637989,2.91732,3427.8,3427.7,0.0075]
[1736276638353,2.92482,3427.8,3427.7,0.0075]
[1736276638553,0.0075,3427.8,3427.7,0.0075]
[1736276639251,0.0075,3428.0,3427.6,0.2413]
[1736276639476,3.9624,3427.7,3427.6,0.2413]
[1736276639918,6.9624,3427.7,3427.6,0.2413]
[1736276640783,7.53831943,3427.7,3427.6,0.2413]
[1736276641297,7.53831943,3427.7,3427.6,0.2488]
[1736276641800,0.0075,3426.7,3426.5,0.0075]
[1736276642098,2.92584,3426.6,3426.5,0.0075]
[1736276642258,0.0075,3426.6,3426.5,0.0075]
[1736276643371,0.0075,3426.5,3426.2,0.0075]
[1736276644224,0.9775,3426.8,3425.8,0.0075]
[1736276644225,0.0075,3426.7,3425.8,0.0075]
[1736276644491,0.0075,3426.7,3425.9,2.91892]
[1736276644701,0.0075,3426.1,3425.4,1.20950443]
[1736276644913,3.92198,3425.5,3425.4,1.20950443]
[1736276645110,3.92198,3425.5,3425.4,1.36790991]
[1736276646157,3.92198,3425.5,3424.8,3.02376109]
[1736276646158,0.0075,3425.1,3424.2,3.0]
[1736276646357,0.9952,3425.5,3424.4,0.02919974]
[1736276646558,2.2046714,3426.0,3424.7,0.0075]
[1736276646796,0.0075,3425.6,3424.7,0.03669487]
[1736276647725,4.3440784,3426.0,3424.7,0.0075]
[1736276647924,1.0362,3425.3,3423.9,2.92062]
[1736276648123,3.3488784,3425.2,3423.8,1.0066]
[1736276648289,3.3488784,3425.2,3423.9,3.51368944]
[1736276648290,0.0075,3424.9,3423.9,3.51368944]
[1736276648491,0.0075,3424.9,3423.9,3.5428918]
[1736276648712,0.0075,3424.8,3424.0,0.0075]
[1736276648918,2.91963,3425.1,3424.0,2.92803]
[1736276649114,1.2712,3425.6,3424.2,1.0141]
[1736276649315,0.235,3425.6,3424.4,0.0075]
[1736276649514,0.235,3425.6,3424.5,1.0066]
[1736276649723,0.0075,3425.4,3424.7,0.0075]
[1736276650431,2.91962,3425.1,3424.0,1.0272]
[1736276650726,0.981,3425.3,3424.0,1.18128894]
[1736276651032,2.91985,3424.9,3424.0,1.18128894]
[1736276651247,0.981,3425.3,3424.0,1.18128894]
[1736276651421,0.981,3425.3,3424.0,1.0272]
[1736276651926,0.0075,3424.3,3424.0,1.0272]
[1736276652132,2.91987,3424.8,3423.7,1.0359]
[1736276652297,0.0075,3423.8,3423.4,1.0359]
[1736276653016,0.0075,3423.7,3423.4,1.0359]
[1736276653633,0.0075,3423.7,3423.5,0.0075]
[1736276654130,0.0075,3423.7,3423.4,1.0359]
[1736276654131,0.0075,3423.9,3423.4,1.0359]
[1736276654313,2.92817,3423.9,3423.4,1.0359]
[1736276654961,2.92817,3423.9,3423.5,0.0075]
[1736276655663,0.0075,3423.7,3423.5,0.0075]
[1736276655958,0.0075,3423.7,3423.2,0.0075]
[1736276656156,3.0075,3424.1,3423.1,1.0359]
[1736276656357,0.0075,3423.5,3423.1,1.0359]
[1736276656734,0.0075,3424.1,3423.1,1.0359]
[1736276656942,0.0075,3423.3,3422.3,1.058]
[1736276657140,2.92097,3423.6,3422.5,2.92177]
[1736276657350,2.92097,3423.6,3422.7,0.0075]
[1736276657668,3.0,3424.3,3422.6,1.058]
[1736276657669,0.0075,3423.5,3422.9,1.058]
[1736276657844,3.94823,3424.5,3423.2,1.058]
[1736276658041,2.92038,3424.3,3423.2,1.0872089]
[1736276658365,1.0281,3424.5,3423.2,1.058]
[1736276658366,2.92051,3424.1,3423.2,1.058]
[1736276658568,0.0075,3424.4,3423.2,1.058]
[1736276658867,2.92077,3423.8,3423.2,1.058]
[1736276659675,3.0,3424.2,3423.2,1.058]
[1736276659972,2.92056,3424.0,3423.2,1.058]
[1736276660169,2.92047,3424.1,3423.2,1.058]
[1736276660385,2.9209,3423.6,3423.2,1.058]
[1736276660793,2.92045,3424.2,3423.2,1.058]
[1736276660987,0.235,3424.3,3423.2,1.058]
[1736276661271,0.0075,3424.0,3423.2,1.058]
[1736276661765,0.0075,3423.8,3423.2,1.058]
[1736276661980,0.0075,3423.5,3422.7,3.92915]
[1736276662187,0.0075,3423.5,3422.7,4.71457191]
[1736276662541,0.0075,3423.5,3422.8,0.0075]
[1736276662747,0.0075,3423.4,3422.8,0.0075]
[1736276662970,0.0075,3423.4,3422.8,0.03671279]
[1736276663384,0.0075,3423.6,3422.8,0.03671279]
[1736276663604,2.92067,3423.9,3423.0,0.0075]
[1736276663954,0.9646,3424.1,3423.0,0.0075]
[1736276663955,0.0075,3423.7,3423.0,0.0075]
[1736276665356,0.9646,3424.5,3423.2,0.0075]
[1736276665558,1.1996,3425.1,3423.6,1.015]
[1736276665811,2.91996,3424.7,3423.9,1.0075]
[1736276666057,2.91982,3424.9,3423.9,1.0075]
[1736276666307,2.92011,3424.6,3424.0,0.0075]
[1736276666715,0.0075,3424.5,3424.0,0.0075]
[1736276666860,2.91991,3424.8,3424.0,0.0075]
[1736276667220,2.91974,3425.0,3424.3,1.0124]
[1736276667354,0.235,3425.4,3424.4,0.0075]
[1736276667562,2.91947,3425.3,3424.3,3.71305945]
[1736276667755,0.0075,3425.2,3424.3,3.71305945]
[1736276667952,2.9197,3425.1,3424.3,0.7636]
[1736276668309,2.91974,3425.0,3424.3,0.7636]
[1736276669505,2.9196,3425.2,3424.3,0.7636]
[1736276669709,0.0075,3425.3,3424.3,0.7636]
[1736276670009,2.91972,3425.0,3424.3,0.7636]
[1736276670321,0.0075,3424.9,3424.3,0.7636]
[1736276670941,0.0075,3425.1,3424.3,0.7636]
[1736276671137,0.0075,3424.5,3423.5,2.92091]
[1736276671461,2.91989,3424.8,3423.9,0.0075]
[1736276671908,0.0075,3424.7,3423.9,0.0075]
[1736276672108,0.0075,3424.7,3424.1,3.89907]
[1736276672351,0.0075,3424.7,3424.1,3.89157]
[1736276672646,2.9273,3424.9,3424.2,0.0075]
[1736276674407,2.9273,3424.9,3424.2,0.03670091]
[1736276674937,2.9273,3424.9,3424.2,0.0075]
[1736276675343,2.91998,3424.7,3424.1,0.9711]
[1736276675645,0.235,3425.4,3424.1,0.9711]
[1736276675842,0.0075,3424.9,3424.1,0.9711]
[1736276676042,0.0075,3424.3,3423.5,0.9711]
[1736276676215,3.0,3424.7,3423.5,0.9711]
[1736276676216,6.3488784,3424.7,3423.5,0.9711]
[1736276676415,0.0075,3424.1,3423.5,0.9711]
[1736276676616,2.92799,3424.1,3423.5,0.9711]
[1736276677233,2.92799,3424.1,3423.6,0.0075]
[1736276677433,3.3488784,3425.1,3423.6,0.0075]
[1736276677747,2.91993,3424.8,3423.8,2.92071]
[1736276677954,3.96032,3425.0,3424.1,1.0476]
[1736276678420,2.92729,3424.9,3424.1,1.07680139]
[1736276678621,2.92729,3424.9,3424.1,1.0476]
[1736276678622,0.0075,3424.9,3424.1,1.0476]
[1736276678956,0.0075,3424.3,3423.5,0.02920301]
[1736276679164,0.0075,3424.1,3423.6,1.0476]
[1736276679320,0.0075,3424.1,3423.7,0.0075]
[1736276680853,0.0075,3424.1,3423.6,1.0476]
[1736276682146,2.92025,3424.4,3423.6,1.0476]
[1736276682321,0.0075,3424.3,3423.6,1.0476]
[1736276682728,2.92783,3424.3,3423.6,1.0476]
[1736276682923,4.0406,3425.0,3423.6,1.0476]
[1736276683109,0.58098029,3424.8,3423.6,1.0476]
[1736276683315,0.0075,3424.5,3423.6,1.0476]
[1736276683510,0.0075,3424.5,3423.6,3.96848]
[1736276684326,0.0075,3424.5,3423.7,2.92081]
[1736276684515,0.0075,3424.5,3423.7,2.95001371]
[1736276685148,0.0075,3424.5,3423.7,0.02920371]
[1736276685339,0.0075,3424.5,3423.6,1.0476]
[1736276685340,0.0075,3424.9,3423.6,3.96849]
[1736276685537,0.0075,3424.9,3423.7,0.0292037]
[1736276685852,0.0075,3424.6,3423.7,2.9500037]
[1736276686068,0.0075,3424.6,3423.9,0.0075]
[1736276686567,0.0075,3424.5,3423.9,0.0075]
[1736276686921,0.0075,3424.5,3423.3,2.92111]
[1736276686922,0.0075,3424.3,3422.3,1.81425665]
[1736276687121,4.5713784,3424.2,3422.6,0.9979]
[1736276687350,0.0075,3423.5,3422.7,0.0075]
[1736276687575,2.92056,3424.0,3423.2,1.064963]
[1736276687850,2.92868,3423.3,3423.2,1.064963]
[1736276688055,0.0075,3423.3,3423.2,1.064963]
[1736276688259,0.0075,3423.3,3423.2,2.062863]
[1736276688630,0.0075,3423.3,3423.2,2.070363]
[1736276689467,0.0075,3423.3,3423.2,1.072463]
[1736276694187,2.92865,3423.3,3423.2,1.072463]
[1736276695163,0.0075,3423.3,3423.2,1.072463]
[1736276695350,2.92865,3423.3,3423.2,1.072463]
[1736276696478,2.92865,3423.3,3423.2,1.064963]
[1736276697047,2.92865,3423.3,3423.2,1.072463]
[1736276698485,2.92115,3423.3,3423.2,1.072463]
[1736276699372,3.15591,3423.6,3423.3,0.0075]
[1736276699373,0.235,3423.6,3423.3,0.0075]
[1736276699684,2.92107,3423.4,3423.3,0.0075]
[1736276699989,2.42857,3423.4,3423.3,0.0075]
[1736276701455,3.15585,3423.7,3423.2,1.064963]
[1736276701456,6.96925,3423.3,3423.2,1.064963]
[1736276701651,10.3181284,3423.3,3423.2,1.064963]
[1736276701990,10.8681284,3423.3,3423.2,1.064963]
[1736276703596,10.8681284,3423.3,3423.2,0.23764066]
[1736276703865,0.0075,3422.4,3422.0,0.292102]
[1736276704100,3.88964,3422.4,3422.0,0.292102]
[1736276704296,3.88964,3422.4,3422.1,0.0075]
[1736276704907,0.9677,3422.4,3422.1,0.0075]
[1736276705979,0.0075,3422.2,3422.0,0.292102]
[1736276707049,0.0075,3422.1,3422.0,0.292102]
[1736276707309,0.0075,3422.1,3422.0,0.299602]
[1736276707505,2.92968,3422.1,3422.0,0.292102]
[1736276707801,6.2785584,3422.1,3422.0,0.292102]
[1736276707967,6.2785584,3422.1,3422.0,0.299602]
[1736276708167,10.8761584,3422.1,3422.0,0.292102]
[1736276708666,1.0345,3421.5,3420.4,0.15229817]
[1736276708866,1.042,3420.7,3420.4,0.15229817]
[1736276709080,2.92354,3420.6,3419.7,1.45592864]
[1736276709270,0.0075,3420.5,3419.7,1.45592864]
[1736276709778,1.0345,3420.7,3419.7,2.67629358]
[1736276709779,0.0075,3420.6,3419.7,2.67629358]
[1736276709990,2.92359,3420.5,3419.7,2.67629358]
[1736276710196,0.0075,3420.4,3419.7,2.67629358]
[1736276711481,0.0075,3420.4,3420.2,0.0075]
[1736276712084,1.0345,3420.7,3420.2,0.15974636]
[1736276712295,1.0448,3421.3,3420.4,0.0075]
[1736276712695,0.0075,3421.3,3420.4,0.0075]
[1736276712897,0.0075,3421.3,3420.4,2.93112]
[1736276713096,0.0075,3421.3,3420.4,0.0075]
[1736276713486,0.0075,3421.3,3420.3,0.9653]
[1736276713487,3.0075,3421.3,3420.3,0.9653]
[1736276713700,2.92364,3420.4,3419.8,0.9653]
[1736276714207,0.0075,3420.5,3419.9,0.0075]
[1736276714409,4.0448,3420.9,3419.9,0.0075]
[1736276714410,5.92325,3420.9,3419.9,0.0075]
[1736276714584,0.0075,3419.9,3419.3,0.9653]
[1736276714913,0.0075,3420.1,3419.3,0.9653]
[1736276715109,1.0448,3420.4,3419.3,0.9653]
[1736276715415,0.0075,3419.7,3419.3,0.9653]
[1736276715915,2.9319,3419.6,3418.6,1.0405]
[1736276717108,0.0075,3419.7,3418.7,0.0075]
[1736276718213,0.0075,3419.5,3418.7,0.0075]
[1736276719680,0.0075,3419.7,3418.7,2.93256]
[1736276720696,2.93177,3419.7,3418.7,0.0075]
[1736276720888,0.0075,3419.5,3418.3,2.92542]
[1736276721094,0.2425,3419.5,3418.4,1.011]
[1736276721476,0.0075,3419.1,3418.4,1.011]
[1736276721908,0.0075,3419.1,3418.5,0.0075]
[1736276722114,0.0075,3418.9,3418.2,0.1689028]
[1736276722414,3.96834,3418.9,3418.2,0.1689028]
[1736276722630,1.0434,3418.9,3418.2,0.1689028]
[1736276722778,2.92508,3418.7,3418.2,0.1689028]
[1736276723110,3.96084,3418.9,3418.3,0.0075]
[1736276723318,3.15978,3419.1,3418.3,0.0075]
[1736276723544,0.0075,3419.0,3418.3,0.0075]
[1736276723875,0.235,3419.1,3418.2,0.1689028]
[1736276723876,0.0075,3418.5,3418.2,0.1689028]
[1736276724071,6.97393,3418.3,3418.2,0.1689028]
[1736276724906,7.52393,3418.3,3418.2,2.8e-06]
[1736276725105,6.97393,3418.3,3418.2,2.8e-06]
[1736276726324,7.20893,3418.3,3418.2,2.8e-06]
[1736276727923,0.0075,3418.3,3418.2,2.8e-06]
[1736276728103,2.93293,3418.3,3418.2,2.8e-06]
[1736276728534,10.2942084,3418.3,3418.2,2.8e-06]
[1736276729323,6.94533,3418.3,3418.2,2.8e-06]
[1736276730227,7.53730248,3418.3,3418.2,2.8e-06]
[1736276731029,11.43618088,3418.3,3418.2,2.8e-06]
[1736276731594,11.43618088,3418.3,3416.7,7.0]
[1736276731595,2.92671,3416.8,3416.7,7.0]
[1736276731927,2.92671,3416.8,3416.7,5.2045467]
[1736276731928,10.5304884,3416.8,3416.7,5.2045467]
[1736276732233,11.12708887,3416.8,3416.7,5.2045467]
[1736276732545,7.84707553,3416.8,3416.7,5.2045467]
[1736276732754,0.07636506,3416.8,3416.7,5.2045467]
[1736276732956,0.07636506,3416.8,3416.7,5.2120467]
[1736276733897,0.07636506,3416.8,3416.7,1.95554005]
[1736276734132,0.06886506,3416.8,3416.7,1.95554005]
[1736276734297,2.92656,3417.0,3416.7,1.94804005]
[1736276734497,2.92671,3416.8,3416.7,1.94804005]
[1736276735035,5.98450155,3416.8,3416.7,1.94804005]
[1736276735351,10.87227995,3416.8,3416.7,5e-08]
[1736276735838,10.32227995,3416.8,3416.7,5e-08]
[1736276736331,6.97340155,3416.8,3416.7,5e-08]
[1736276736551,7.20840155,3416.8,3416.7,5e-08]
[1736276737007,0.05779155,3416.8,3416.7,5e-08]
[1736276737418,2.92626,3417.4,3416.7,1.02770005]
[1736276737620,2.92601,3417.7,3416.7,1.03520005]
[1736276737621,0.05148817,3416.8,3416.7,1.03520005]
[1736276737821,0.966,3418.2,3416.8,0.5575]
[1736276738014,0.235,3418.8,3417.7,0.0075]